fUST/lending_fUST_20250708
["ID","MTS","AMOUNT","RATE_DAILY","PERIOD"]
[370317793,1751952643738,-460.0,0.00019178,2]
[370317794,1751952643748,-460.0,0.00019178,2]
[370317795,1751952643757,-460.0,0.00019178,2]
[370317796,1751952643767,-460.0,0.00019178,2]
[370317798,1751952643777,-460.0,0.00019178,2]
[370317799,1751952643787,-460.0,0.00019178,2]
[370317801,1751952643796,-593.74873721,0.00019178,2]
[370317802,1751952643805,-460.0,0.00019178,2]
[370317804,1751952643815,-460.0,0.00019178,2]
[370317805,1751952643825,-460.0,0.00019178,2]
[370317806,1751952643834,-460.0,0.00019178,2]
[370317807,1751952643843,-460.0,0.00019178,2]
[370317808,1751952643853,-460.0,0.00019178,2]
[370317809,1751952643862,-460.0,0.00019178,2]
[370317810,1751952643872,-460.0,0.00019178,2]
[370317811,1751952643882,-460.0,0.00019178,2]
[370317812,1751952643892,-460.0,0.00019178,2]
[370317813,1751952643902,-460.0,0.00019178,2]
[370317814,1751952643911,-460.0,0.00019178,2]
[370317815,1751952643921,-1331.98,0.00019178,2]
[370317816,1751952643930,-460.0,0.00019178,2]
[370317817,1751952643940,-460.0,0.00019178,2]
[370317818,1751952643949,-460.0,0.00019178,2]
[370317819,1751952643959,-460.0,0.00019178,2]
[370317820,1751952643970,-499.02,0.00019178,2]
[370317821,1751952643979,-460.0,0.00019178,2]
[370317822,1751952643988,-460.0,0.00019178,2]
[370317823,1751952643999,-460.0,0.00019178,2]
[370317824,1751952644008,-460.0,0.00019178,2]
[370317825,1751952644018,-460.0,0.00019178,2]
[370317826,1751952644027,-503.46,0.00019178,2]
[370317828,1751952644037,-460.0,0.00019178,2]
[370317830,1751952644048,-460.0,0.00019178,2]
[370317832,1751952644057,-503.46,0.00019178,2]
[370317834,1751952644067,-503.46,0.00019178,2]
[370317836,1751952644081,-503.46,0.00019178,2]
[370317837,1751952644090,-503.46,0.00019178,2]
[370317838,1751952644100,-503.46,0.00019178,2]
[370317839,1751952644112,-503.46,0.00019178,2]
[370317840,1751952644121,-503.46,0.00019178,2]
[370317841,1751952644131,-517.96264201,0.00019178,2]
[370317842,1751952644141,-460.0,0.00019178,2]
[370317843,1751952644151,-503.46,0.00019178,2]
[370317844,1751952644162,-460.0,0.00019178,2]
[370317845,1751952644171,-503.46,0.00019178,2]
[370317846,1751952644181,-1451.96,0.00019178,2]
[370317847,1751952644190,-503.46,0.00019178,2]
[370317848,1751952644201,-503.46,0.00019178,2]
[370317849,1751952644211,-503.46,0.00019178,2]
[370317850,1751952644221,-503.46,0.00019178,2]
[370317851,1751952644230,-503.46,0.00019178,2]
[370317852,1751952644240,-503.46,0.00019178,2]
[370317853,1751952644249,-503.46,0.00019178,2]
[370317854,1751952644259,-503.46,0.00019178,2]
[370317855,1751952644268,-503.46,0.00019178,2]
[370317856,1751952644278,-503.46,0.00019178,2]
[370317857,1751952644288,-460.97375749,0.00019178,2]
[370317858,1751952644297,-503.46,0.00019178,2]
[370317859,1751952644307,-503.46,0.00019178,2]
[370317860,1751952644316,-503.46,0.00019178,2]
[370317861,1751952644326,-503.68415445,0.00019178,2]
[370317862,1751952644336,-460.0,0.00019178,2]
[370317863,1751952644345,-460.0,0.00019178,2]
[370317864,1751952644356,-460.0,0.00019178,2]
[370317865,1751952644365,-460.0,0.00019178,2]
[370317866,1751952644375,-460.0,0.00019178,2]
[370317867,1751952644384,-460.0,0.00019178,2]
[370317868,1751952644394,-460.0,0.00019178,2]
[370317869,1751952644403,-460.85867471,0.00019178,2]
[370317870,1751952644413,-468.50065099,0.00019178,2]
[370317871,1751952644423,-1532.66,0.00019178,2]
[370317872,1751952644432,-477.85,0.00019178,2]
[370317873,1751952644442,-460.0,0.00019178,2]
[370317874,1751952644452,-460.0,0.00019178,2]
[370317875,1751952644462,-460.0,0.00019178,2]
[370317876,1751952644471,-460.0,0.00019178,2]
[370317877,1751952644481,-460.0,0.00019178,2]
[370317878,1751952644491,-460.0,0.00019178,2]
[370317879,1751952644500,-1061.64,0.00019178,2]
[370317880,1751952644510,-751.99,0.00019178,2]
[370317881,1751952644519,-460.0,0.00019178,2]
[370317882,1751952644528,-2194.52,0.00019178,2]
[370317883,1751952644538,-460.0,0.00019178,2]
[370317884,1751952644547,-460.0,0.00019178,2]
[370317885,1751952644556,-460.0,0.00019178,2]
[370317886,1751952644566,-460.0,0.00019178,2]
[370317887,1751952644575,-460.0,0.00019178,2]
[370317888,1751952644585,-460.0,0.00019178,2]
[370317889,1751952644594,-460.0,0.00019178,2]
[370317890,1751952644604,-460.0,0.00019178,2]
[370317891,1751952644613,-1000.31,0.00019178,2]
[370317892,1751952644622,-460.0,0.00019178,2]
[370317893,1751952644632,-435.98862857,0.00019178,2]
[370317894,1751952644642,-460.0,0.00019178,2]
[370317895,1751952644651,-460.0,0.00019178,2]
[370317896,1751952644661,-460.0,0.00019178,2]
[370317897,1751952644670,-460.0,0.00019178,2]
[370317898,1751952644680,-460.0,0.00019178,2]
[370317899,1751952644690,-460.0,0.00019178,2]
[370317900,1751952644700,-460.0,0.00019178,2]
[370317901,1751952644710,-499.50233296,0.00019178,2]
[370317902,1751952644719,-460.0,0.00019178,2]
[370317903,1751952644729,-460.0,0.00019178,2]
[370317904,1751952644739,-460.0,0.00019178,2]
[370317905,1751952644748,-460.0,0.00019178,2]
[370317906,1751952644757,-460.0,0.00019178,2]
[370317907,1751952644766,-165.95047991,0.00019178,2]
[370317908,1751952644775,-460.0,0.00019178,2]
[370317909,1751952644784,-460.0,0.00019178,2]
[370317910,1751952644793,-460.0,0.00019178,2]
[370317911,1751952644803,-975.91,0.00019178,2]
[370317912,1751952644812,-460.0,0.00019178,2]
[370317913,1751952644822,-460.0,0.00019178,2]
[370317914,1751952644831,-460.0,0.00019178,2]
[370317915,1751952644840,-554.2564084,0.00019178,2]
[370317916,1751952644850,-1138.93,0.00019178,2]
[370317917,1751952644859,-460.0,0.00019178,2]
[370317918,1751952644869,-460.0,0.00019178,2]
[370317919,1751952644878,-485.48,0.00019178,2]
[370317920,1751952644888,-460.0,0.00019178,2]
[370317921,1751952644898,-460.0,0.00019178,2]
[370317922,1751952644907,-460.0,0.00019178,2]
[370317923,1751952644916,-460.0,0.00019178,2]
[370317924,1751952644926,-2440.7,0.00019178,2]
[370317925,1751952644935,-276.34221006,0.00019178,2]
[370317926,1751952644944,-155.0,0.00019178,2]
[370317927,1751952644954,-460.57627507,0.00019178,2]
[370317928,1751952644964,-460.0,0.00019178,2]
[370317929,1751952644975,-500.0,0.00019178,2]
[370317930,1751952644984,-460.0,0.00019178,2]
[370317931,1751952644994,-460.0,0.00019178,2]
[370317932,1751952645003,-460.0,0.00019178,2]
[370317933,1751952645016,-460.0,0.00019178,2]
[370317934,1751952645026,-2978.75,0.00019178,2]
[370317935,1751952645036,-269.36174212,0.00019178,2]
[370317936,1751952645045,-460.0,0.00019178,2]
[370317937,1751952645054,-460.0,0.00019178,2]
[370317938,1751952645064,-460.0,0.00019178,2]
[370317939,1751952645075,-460.0,0.00019178,2]
[370317940,1751952645085,-460.0,0.00019178,2]
[370317941,1751952645095,-460.0,0.00019178,2]
[370317942,1751952645104,-460.0,0.00019178,2]
[370317943,1751952645114,-460.0,0.00019178,2]
[370317944,1751952645123,-665.26,0.00019178,2]
[370317945,1751952645135,-460.0,0.00019178,2]
[370317946,1751952645144,-460.0,0.00019178,2]
[370317947,1751952645153,-1523.19,0.00019178,2]
[370317948,1751952645163,-460.0,0.00019178,2]
[370317949,1751952645173,-484.58,0.00019178,2]
[370317950,1751952645184,-460.0,0.00019178,2]
[370317951,1751952645194,-460.0,0.00019178,2]
[370317952,1751952645203,-460.0,0.00019178,2]
[370317953,1751952645212,-460.0,0.00019178,2]
[370317954,1751952645222,-460.0,0.00019178,2]
[370317955,1751952645231,-460.0,0.00019178,2]
[370317956,1751952645240,-1462.79,0.00019178,2]
[370317957,1751952645250,-497.95075379,0.00019178,2]
[370317958,1751952645261,-590.80361207,0.00019178,2]
[370317959,1751952645270,-460.0,0.00019178,2]
[370317960,1751952645280,-460.0,0.00019178,2]
[370317961,1751952645289,-460.0,0.00019178,2]
[370317962,1751952645298,-460.0,0.00019178,2]
[370317963,1751952645307,-460.0,0.00019178,2]
[370317964,1751952645317,-460.0,0.00019178,2]
[370317965,1751952645326,-460.0,0.00019178,2]
[370317966,1751952645335,-460.0,0.00019178,2]
[370317967,1751952645345,-460.0,0.00019178,2]
[370317968,1751952645355,-1134.73,0.00019178,2]
[370317969,1751952645364,-460.0,0.00019178,2]
[370317970,1751952645374,-460.0,0.00019178,2]
[370317971,1751952645383,-460.0,0.00019178,2]
[370317972,1751952645392,-460.0,0.00019178,2]
[370317973,1751952645402,-460.0,0.00019178,2]
[370317974,1751952645412,-211.81662189,0.00019178,2]
[370317975,1751952645422,-460.0,0.00019178,2]
[370317976,1751952645431,-460.0,0.00019178,2]
[370317977,1751952645440,-460.0,0.00019178,2]
[370317978,1751952645450,-461.21402365,0.00019178,2]
[370317979,1751952645459,-460.0,0.00019178,2]
[370317980,1751952645469,-395.17515856,0.00019178,2]
[370317981,1751952645479,-460.0,0.00019178,2]
[370317982,1751952645489,-1134.05,0.00019178,2]
[370317983,1751952645499,-460.0,0.00019178,2]
[370317984,1751952645509,-450.47267329,0.00019178,2]
[370317985,1751952645757,-9.52732671,0.00019178,2]
[370317986,1751952645767,-460.62724772,0.00019178,2]
[370317987,1751952645778,-460.0,0.00019178,2]
[370317988,1751952645788,-460.0,0.00019178,2]
[370317989,1751952645798,-460.0,0.00019178,2]
[370317990,1751952645808,-461.56180502,0.00019178,2]
[370317991,1751952645818,-460.0,0.00019178,2]
[370317992,1751952645829,-2550.6,0.00019178,2]
[370317993,1751952645839,-460.0,0.00019178,2]
[370317994,1751952645849,-460.0,0.00019178,2]
[370317995,1751952645859,-460.0,0.00019178,2]
[370317996,1751952645869,-1891.44887149,0.00019178,2]
[370317997,1751952645879,-192.844886,0.00019178,2]
[370317998,1751952645889,-3182.95296865,0.00019218,2]
[370317999,1751952645898,-1632.33836828,0.00019256,2]
[370318000,1751952645909,-160.0,0.00019336,6]
[370318001,1751952645919,-500.0,0.00019351,2]
[370318002,1751952645929,-163.35081,0.00019352,2]
[370318003,1751952645939,-1577.59904304,0.00019383,2]
[370318004,1751952646059,-493.15057255,0.00019383,2]
[370318005,1751952646069,-151.0,0.00019383,2]
[370318006,1751952646078,-1337.72206794,0.00019409,2]
[370318007,1751952646088,-460.0,0.00019452,2]
[370318008,1751952646098,-460.0,0.00019452,2]
[370318009,1751952646107,-382.82030276,0.00019452,2]
[370318010,1751952646117,-460.0,0.00019452,2]
[370318012,1751952646126,-461.98474876,0.00019452,2]
[370318013,1751952646136,-460.0,0.00019452,2]
[370318014,1751952646145,-460.0,0.00019452,2]
[370318015,1751952646155,-460.0,0.00019452,2]
[370318016,1751952646165,-460.0,0.00019452,2]
[370318017,1751952646175,-460.0,0.00019452,2]
[370318018,1751952646185,-460.0,0.00019452,2]
[370318019,1751952646195,-251.77051197,0.00019452,2]
[370318020,1751952646205,-460.0,0.00019452,2]
[370318021,1751952646216,-460.0,0.00019452,2]
[370318022,1751952646226,-460.0,0.00019452,2]
[370318023,1751952646235,-460.0,0.00019452,2]
[370318024,1751952646245,-460.0,0.00019452,2]
[370318025,1751952646255,-460.0,0.00019452,2]
[370318026,1751952646264,-460.0,0.00019452,2]
[370318028,1751952646274,-460.0,0.00019452,2]
[370318029,1751952646284,-460.0,0.00019452,2]
[370318030,1751952646294,-460.0,0.00019452,2]
[370318031,1751952646304,-460.0,0.00019452,2]
[370318032,1751952646314,-460.0,0.00019452,2]
[370318033,1751952646323,-460.0,0.00019452,2]
[370318034,1751952646334,-558.58,0.00019452,2]
[370318035,1751952646344,-310.51939171,0.00019452,2]
[370318036,1751952646354,-461.92396548,0.00019452,2]
[370318037,1751952646364,-460.0,0.00019452,2]
[370318038,1751952646374,-464.49736192,0.00019452,2]
[370318039,1751952646384,-461.72677275,0.00019452,2]
[370318040,1751952646394,-460.0,0.00019452,2]
[370318041,1751952646403,-462.10568329,0.00019452,2]
[370318042,1751952646414,-490.0,0.00019452,2]
[370318043,1751952646423,-460.0,0.00019452,2]
[370318044,1751952646433,-215.30207697,0.00019452,2]
[370318046,1751952646443,-460.0,0.00019452,2]
[370318047,1751952646453,-460.0,0.00019452,2]
[370318048,1751952646464,-460.0,0.00019452,2]
[370318049,1751952646475,-460.0,0.00019452,2]
[370318050,1751952646486,-460.0,0.00019452,2]
[370318051,1751952646497,-460.0,0.00019452,2]
[370318052,1751952646506,-460.0,0.00019452,2]
[370318053,1751952646516,-460.0,0.00019452,2]
[370318054,1751952646526,-460.0,0.00019452,2]
[370318055,1751952646535,-460.0,0.00019452,2]
[370318056,1751952646545,-488.57757659,0.00019452,2]
[370318057,1751952646554,-460.0,0.00019452,2]
[370318059,1751952646564,-460.0,0.00019452,2]
[370318061,1751952646573,-460.0,0.00019452,2]
[370318063,1751952646583,-460.0,0.00019452,2]
[370318065,1751952646593,-460.0,0.00019452,2]
[370318066,1751952646602,-460.0,0.00019452,2]
[370318067,1751952646611,-460.0,0.00019452,2]
[370318068,1751952646621,-460.0,0.00019452,2]
[370318069,1751952646630,-309.69983773,0.00019452,2]
[370318070,1751952646639,-560.92054938,0.00019452,2]
[370318071,1751952646649,-460.0,0.00019452,2]
[370318072,1751952646659,-460.0,0.00019452,2]
[370318073,1751952646668,-460.0,0.00019452,2]
[370318074,1751952646678,-463.21588621,0.00019452,2]
[370318075,1751952646688,-460.0,0.00019452,2]
[370318076,1751952646698,-460.0,0.00019452,2]
[370318077,1751952646707,-460.0,0.00019452,2]
[370318078,1751952646717,-460.0,0.00019452,2]
[370318079,1751952646727,-460.0,0.00019452,2]
[370318080,1751952646739,-460.0,0.00019452,2]
[370318081,1751952646750,-460.0,0.00019452,2]
[370318082,1751952646761,-460.0,0.00019452,2]
[370318083,1751952646770,-282.62351271,0.00019452,2]
[370318084,1751952646785,-177.37648729,0.00019452,2]
[370318085,1751952646795,-460.0,0.00019452,2]
[370318086,1751952646804,-460.0,0.00019452,2]
[370318087,1751952646814,-460.0,0.00019452,2]
[370318088,1751952646823,-467.1236962,0.00019452,2]
[370318089,1751952646833,-460.0,0.00019452,2]
[370318090,1751952646843,-460.0,0.00019452,2]
[370318091,1751952646852,-460.0,0.00019452,2]
[370318092,1751952646862,-360.44300163,0.00019452,2]
[370318093,1751952646871,-464.35447093,0.00019452,2]
[370318094,1751952646880,-460.0,0.00019452,2]
[370318095,1751952646890,-374.20561355,0.00019452,2]
[370318096,1751952646900,-460.0,0.00019452,2]
[370318097,1751952646909,-464.30845221,0.00019452,2]
[370318098,1751952646920,-460.0,0.00019452,2]
[370318099,1751952646930,-465.82080286,0.00019452,2]
[370318100,1751952646939,-460.0,0.00019452,2]
[370318101,1751952646948,-469.91098441,0.00019452,2]
[370318102,1751952646958,-460.0,0.00019452,2]
[370318103,1751952646967,-460.0,0.00019452,2]
[370318104,1751952646976,-486.96353241,0.00019452,2]
[370318105,1751952646985,-460.0,0.00019452,2]
[370318106,1751952646995,-460.0,0.00019452,2]
[370318107,1751952647004,-462.29544364,0.00019452,2]
[370318108,1751952647016,-462.47496708,0.00019452,2]
[370318109,1751952647025,-371.69228205,0.00019452,2]
[370318110,1751952647034,-460.0,0.00019452,2]
[370318111,1751952647043,-460.0,0.00019452,2]
[370318112,1751952647053,-460.0,0.00019452,2]
[370318113,1751952647062,-460.0,0.00019452,2]
[370318114,1751952647071,-460.0,0.00019452,2]
[370318115,1751952647081,-460.0,0.00019452,2]
[370318116,1751952647090,-460.0,0.00019452,2]
[370318117,1751952647099,-460.0,0.00019452,2]
[370318118,1751952647109,-460.0,0.00019452,2]
[370318119,1751952647118,-460.0,0.00019452,2]
[370318120,1751952647127,-460.0,0.00019452,2]
[370318121,1751952647138,-460.0,0.00019452,2]
[370318122,1751952647147,-467.90405685,0.00019452,2]
[370318123,1751952647157,-460.0,0.00019452,2]
[370318124,1751952647166,-460.0,0.00019452,2]
[370318125,1751952647175,-460.0,0.00019452,2]
[370318126,1751952647185,-460.0,0.00019452,2]
[370318127,1751952647195,-460.0,0.00019452,2]
[370318128,1751952647204,-460.0,0.00019452,2]
[370318129,1751952647214,-397.64294546,0.00019452,2]
[370318130,1751952647224,-420.98714835,0.00019452,2]
[370318131,1751952647233,-460.0,0.00019452,2]
[370318132,1751952647243,-472.07602775,0.00019452,2]
[370318133,1751952647253,-455.02335222,0.00019452,2]
[370318134,1751952647262,-460.0,0.00019452,2]
[370318135,1751952647272,-460.0,0.00019452,2]
[370318136,1751952647281,-463.54414714,0.00019452,2]
[370318137,1751952647291,-460.0,0.00019452,2]
[370318138,1751952647300,-500.0,0.00019452,2]
[370318139,1751952647309,-460.0,0.00019452,2]
[370318140,1751952647318,-460.0,0.00019452,2]
[370318141,1751952647329,-460.0,0.00019452,2]
[370318142,1751952647338,-460.0,0.00019452,2]
[370318143,1751952647348,-460.0,0.00019452,2]
[370318144,1751952647357,-460.0,0.00019452,2]
[370318145,1751952647367,-460.0,0.00019452,2]
[370318146,1751952647377,-460.0,0.00019452,2]
[370318147,1751952647387,-460.0,0.00019452,2]
[370318148,1751952647397,-460.0,0.00019452,2]
[370318149,1751952647407,-460.0,0.00019452,2]
[370318150,1751952647416,-460.0,0.00019452,2]
[370318151,1751952647426,-460.0,0.00019452,2]
[370318152,1751952647436,-465.16588099,0.00019452,2]
[370318153,1751952647446,-460.83446027,0.00019452,2]
[370318154,1751952647455,-460.0,0.00019452,2]
[370318155,1751952647466,-479.37845129,0.00019452,2]
[370318156,1751952647476,-460.0,0.00019452,2]
[370318157,1751952647486,-460.0,0.00019452,2]
[370318158,1751952647495,-460.0,0.00019452,2]
[370318159,1751952647505,-460.0,0.00019452,2]
[370318160,1751952647515,-463.08396074,0.00019452,2]
[370318161,1751952647525,-505.13378832,0.00019452,2]
[370318162,1751952647534,-460.0,0.00019452,2]
[370318163,1751952647544,-460.0,0.00019452,2]
[370318164,1751952647553,-151.0,0.00019452,2]
[370318165,1751952647563,-460.0,0.00019452,2]
[370318166,1751952647572,-460.0,0.00019452,2]
[370318167,1751952647582,-461.1672208,0.00019452,2]
[370318168,1751952647591,-462.95603289,0.00019452,2]
[370318169,1751952647601,-460.0,0.00019452,2]
[370318170,1751952647610,-460.0,0.00019452,2]
[370318171,1751952647620,-460.0,0.00019452,2]
[370318172,1751952647630,-460.0,0.00019452,2]
[370318173,1751952647640,-1127.66208256,0.00019452,2]
[370318174,1751952647655,-361.46791744,0.00019452,2]
[370318175,1751952647664,-498.91,0.00019452,2]
[370318176,1751952647674,-460.0,0.00019452,2]
[370318177,1751952647683,-268.62891514,0.00019452,2]
[370318178,1751952647693,-185.92316742,0.00019452,2]
[370318179,1751952647705,-274.07683258,0.00019452,2]
[370318180,1751952647715,-225.92316742,0.00019452,2]
[370318181,1751952647728,-234.07683258,0.00019452,2]
[370318182,1751952647738,-460.0,0.00019452,2]
[370318183,1751952647748,-460.0,0.00019452,2]
[370318184,1751952647758,-323.20001025,0.00019452,2]
[370318185,1751952647774,-136.79998975,0.00019452,2]
[370318186,1751952647784,-460.0,0.00019452,2]
[370318187,1751952647794,-460.0,0.00019452,2]
[370318188,1751952647803,-460.0,0.00019452,2]
[370318189,1751952647812,-460.0,0.00019452,2]
[370318190,1751952647822,-463.32003972,0.00019452,2]
[370318191,1751952647832,-460.0,0.00019452,2]
[370318192,1751952647842,-460.0,0.00019452,2]
[370318193,1751952647852,-460.0,0.00019452,2]
[370318194,1751952647861,-240.23640136,0.00019452,2]
[370318195,1751952647874,-219.76359864,0.00019452,2]
[370318196,1751952647884,-460.0,0.00019452,2]
[370318197,1751952647894,-460.0,0.00019452,2]
[370318198,1751952647903,-460.0,0.00019452,2]
[370318199,1751952647913,-460.0,0.00019452,2]
[370318200,1751952647922,-460.0,0.00019452,2]
[370318201,1751952647932,-545.58465802,0.00019452,2]
[370318202,1751952647941,-466.0575223,0.00019452,2]
[370318203,1751952647951,-346.23971196,0.00019452,2]
[370318204,1751952647967,-113.76028804,0.00019452,2]
[370318205,1751952647979,-460.0,0.00019452,2]
[370318206,1751952647988,-67.2482878,0.00019452,2]
[370318207,1751952648173,-460.0,0.00019178,2]
[370318208,1751952648194,-993.2317122,0.00019452,2]
[370318209,1751952648219,-463.70617743,0.00019452,2]
[370318210,1751952648232,-192.83669121,0.00019452,2]
[370318211,1751952648375,-267.16330879,0.00019452,2]
[370318212,1751952648385,-461.50870629,0.00019452,2]
[370318213,1751952648395,-174.10134112,0.00019452,2]
[370318214,1751952648405,-460.0,0.00019452,2]
[370318215,1751952648415,-460.0,0.00019452,2]
[370318216,1751952648425,-104.43610517,0.00019452,2]
[370318217,1751952648458,-355.56389483,0.00019452,2]
[370318218,1751952648467,-460.0,0.00019452,2]
[370318219,1751952648478,-460.0,0.00019452,2]
[370318220,1751952648488,-460.0,0.00019452,2]
[370318221,1751952648498,-460.0,0.00019452,2]
[370318222,1751952648508,-460.0,0.00019452,2]
[370318223,1751952648518,-460.0,0.00019452,2]
[370318224,1751952648528,-460.0,0.00019452,2]
[370318225,1751952648538,-460.0,0.00019452,2]
[370318226,1751952648549,-460.0,0.00019452,2]
[370318227,1751952648559,-460.0,0.00019452,2]
[370318228,1751952648570,-467.10319287,0.00019452,2]
[370318229,1751952648580,-465.56444294,0.00019452,2]
[370318230,1751952648590,-1489.65950766,0.00019452,2]
[370318231,1751952648723,-258.0030354,0.00019178,2]
[370318232,1751952697502,199.01330959,0.00025215,120]
[370318240,1751953757628,152.17318442,0.000181,9]
[370318278,1751953831813,-1397.63424751,0.00018488,2]
[370318280,1751953831826,-2717.39152033,0.00018488,2]
[370318286,1751953831871,-300.0,0.00018488,2]
[370318288,1751953831884,-1276.75173336,0.00018488,2]
[370318290,1751953831895,-566.10180758,0.000189,2]
[370318292,1751953831905,-501.12,0.00019,2]
[370318294,1751953831914,-300.0,0.00019077,2]
[370318296,1751953831925,-1200.0,0.00019077,2]
[370318298,1751953831935,-300.0,0.00019077,2]
[370318300,1751953831944,-300.0,0.00019077,2]
[370318303,1751953831953,-300.0,0.00019077,2]
[370318306,1751953831963,-901.50168412,0.00019078,2]
[370318308,1751953831972,-979.403021,0.00019078,2]
[370318310,1751953831982,-1200.0,0.00019166,2]
[370318312,1751953831993,-207.4,0.00019166,2]
[370318314,1751953832002,-477.15,0.00019168,3]
[370318316,1751953832013,-238.57,0.00019168,3]
[370318319,1751953832023,-715.74,0.00019168,3]
[370318321,1751953832033,-502.79862789,0.00019173,2]
[370318323,1751953832043,-500.0,0.00019173,2]
[370318325,1751953832053,-500.0,0.00019177,2]
[370318327,1751953832063,-500.0,0.00019177,2]
[370318329,1751953832073,-325.03254601,0.00019177,2]
[370318331,1751953832083,-334.26489919,0.00019177,2]
[370318333,1751953832092,-464.44953808,0.00019178,2]
[370318335,1751953832102,-460.0,0.00019178,2]
[370318337,1751953832112,-460.0,0.00019178,2]
[370318339,1751953832122,-462.00577973,0.00019178,2]
[370318341,1751953832132,-460.0,0.00019178,2]
[370318343,1751953832141,-464.33823112,0.00019178,2]
[370318345,1751953832151,-460.0,0.00019178,2]
[370318347,1751953832161,-151.0,0.00019178,2]
[370318349,1751953832171,-409.0006823,0.00019178,2]
[370318351,1751953832180,-183.601615,0.00019178,2]
[370318353,1751953832190,-1003.24831103,0.00019178,2]
[370318355,1751953832200,-460.0,0.00019178,2]
[370318357,1751953832210,-460.0,0.00019178,2]
[370318359,1751953832219,-460.0,0.00019178,2]
[370318361,1751953832229,-500.0,0.00019178,2]
[370318363,1751953832239,-500.0,0.00019178,2]
[370318365,1751953832249,-460.0,0.00019178,2]
[370318367,1751953832258,-460.0,0.00019178,2]
[370318369,1751953832268,-460.0,0.00019178,2]
[370318371,1751953832278,-460.0,0.00019178,2]
[370318373,1751953832287,-460.0,0.00019178,2]
[370318375,1751953832297,-473.00417272,0.00019178,2]
[370318377,1751953832307,-460.0,0.00019178,2]
[370318379,1751953832317,-460.0,0.00019178,2]
[370318381,1751953832326,-464.50696175,0.00019178,2]
[370318384,1751953832338,-460.00000002,0.00019178,2]
[370318386,1751953832347,-460.0,0.00019178,2]
[370318388,1751953832357,-460.0,0.00019178,2]
[370318390,1751953832366,-462.28208702,0.00019178,2]
[370318392,1751953832376,-460.0,0.00019178,2]
[370318394,1751953832385,-460.0,0.00019178,2]
[370318396,1751953832395,-460.0,0.00019178,2]
[370318398,1751953832404,-460.0,0.00019178,2]
[370318400,1751953832414,-460.0,0.00019178,2]
[370318402,1751953832423,-460.0,0.00019178,2]
[370318404,1751953832433,-460.0,0.00019178,2]
[370318406,1751953832443,-460.0,0.00019178,2]
[370318408,1751953832456,-460.0,0.00019178,2]
[370318409,1751953832465,-463.17199371,0.00019178,2]
[370318410,1751953832477,-460.0,0.00019178,2]
[370318411,1751953832486,-460.0,0.00019178,2]
[370318412,1751953832496,-460.0,0.00019178,2]
[370318413,1751953832506,-456.98536791,0.00019178,2]
[370318414,1751953832515,-460.0,0.00019178,2]
[370318415,1751953832526,-462.88990773,0.00019178,2]
[370318416,1751953832536,-460.0,0.00019178,2]
[370318417,1751953832546,-462.18350068,0.00019178,2]
[370318418,1751953832556,-460.0,0.00019178,2]
[370318419,1751953832565,-460.0,0.00019178,2]
[370318420,1751953832575,-460.0,0.00019178,2]